bitfinex/quotes_ETHUSD_20250425
["timestamp","ask_amount","ask_price","bid_price","bid_amount"]
[1745614208082,0.8199,1797.9,1797.5,10.29926599]
[1745614208366,1.33834857,1797.9,1797.5,10.29926599]
[1745614208963,1.33834857,1797.9,1797.6,0.85310464]
[1745614209165,1.33834857,1797.9,1797.7,5.56252635]
[1745614209376,0.8199,1797.9,1797.7,5.56252635]
[1745614210013,0.8199,1797.9,1797.6,6.41588381]
[1745614210471,0.8199,1797.9,1797.6,6.41585717]
[1745614210668,0.8199,1797.9,1797.6,7.10961434]
[1745614211505,0.8199,1797.9,1797.6,6.41585717]
[1745614213270,0.8199,1797.9,1797.7,5.56263662]
[1745614214700,0.8199,1797.9,1797.6,6.41592642]
[1745614214902,0.8199,1797.9,1797.6,11.978749]
[1745614215303,0.8199,1797.9,1797.7,5.56259077]
[1745614215617,0.7851,1798.1,1797.8,6.41520917]
[1745614215779,0.51812692,1798.2,1798.0,0.85310464]
[1745614215780,1.31552692,1798.2,1798.0,0.85310464]
[1745614216281,0.7974,1798.2,1798.0,0.85310464]
[1745614220010,1.33429894,1798.4,1798.0,0.85310464]
[1745614221206,0.51809894,1798.3,1798.0,0.85310464]
[1745614221976,0.8162,1798.4,1798.0,0.85310464]
[1745614223009,0.8162,1798.4,1797.9,4.734]
[1745614223509,0.8162,1798.4,1797.9,10.29599484]
[1745614224609,0.51789775,1798.3,1797.9,10.29599484]
[1745614225709,0.8162,1798.4,1797.9,10.29599484]
[1745614228022,0.51771558,1798.3,1797.9,10.29599484]
[1745614228326,0.51771558,1798.3,1797.9,4.734]
[1745614229229,0.51771558,1798.2,1797.9,4.734]
[1745614229785,0.51771558,1798.2,1797.8,16.7113906]
[1745614230323,0.51771558,1798.3,1797.9,5.56204374]
[1745614230725,0.51771558,1798.3,1797.8,16.71136957]
[1745614230919,0.51771558,1798.2,1797.8,16.71136957]
[1745614231221,0.51771558,1798.2,1797.8,16.71136497]
[1745614232325,0.51771558,1798.3,1797.9,5.56204328]
[1745614233123,0.51771558,1798.2,1797.9,5.56204328]
[1745614233330,0.51771558,1798.2,1797.9,7.18477679]
[1745614234134,0.51771558,1798.3,1797.9,7.18477679]
[1745614235236,0.8162,1798.4,1797.9,7.18477679]
[1745614237533,0.51755189,1798.3,1797.9,7.18477679]
[1745614238707,0.8162,1798.4,1797.9,7.18477679]
[1745614240816,0.51788921,1798.3,1797.9,7.18477679]
[1745614241219,0.51788921,1798.3,1797.9,7.18471769]
[1745614241935,0.8162,1798.4,1797.9,7.18471769]
[1745614243510,1.1271366,1798.4,1797.9,7.18471769]
[1745614244335,0.51831652,1798.3,1797.9,7.18471769]
[1745614245741,0.8162,1798.4,1797.9,7.18471769]
[1745614246521,1.1271366,1798.4,1797.9,7.18471769]
[1745614247511,0.8162,1798.4,1797.9,7.18471769]
[1745614247716,0.51843146,1798.3,1797.9,7.18471769]
[1745614248912,1.1271366,1798.4,1797.9,7.18471769]
[1745614249949,0.8162,1798.4,1797.9,7.18471769]
[1745614250445,0.8162,1798.4,1798.1,1.62289245]
[1745614251854,1.1271366,1798.4,1798.1,1.62289245]
[1745614252347,0.5184112,1798.3,1798.1,1.62289245]
[1745614253242,0.8162,1798.4,1798.1,1.62289245]
[1745614254847,1.1271366,1798.4,1798.1,1.62289245]
[1745614255350,0.51838864,1798.3,1798.1,1.62289245]
[1745614256853,0.8162,1798.4,1798.1,1.62289245]
[1745614257252,1.1271366,1798.4,1798.1,1.62289245]
[1745614258349,0.3109366,1798.6,1798.4,11.12063429]
[1745614258520,0.3109366,1798.6,1798.3,0.8268]
[1745614258720,0.8072,1798.5,1798.2,6.35489245]
[1745614260458,0.8072,1798.5,1798.2,11.91599474]
[1745614260654,0.8072,1798.5,1798.4,1.62289245]
[1745614261359,1.30029323,1798.7,1798.4,7.18327433]
[1745614261559,1.30029323,1798.7,1798.4,7.98228176]
[1745614261756,1.30029323,1798.7,1798.4,2.42189988]
[1745614261941,0.7821,1798.7,1798.4,1.62289245]
[1745614270289,0.7715,1798.9,1798.6,1.62289245]
[1745614270787,0.7715,1798.9,1798.8,1.62289245]
[1745614271154,0.7715,1799.0,1798.8,1.62289245]
[1745614272402,0.7715,1799.2,1798.9,1.62289245]
[1745614272609,0.7715,1799.2,1799.0,1.62289245]
[1745614273273,0.7715,1799.2,1798.9,1.62289245]
[1745614273630,0.7715,1799.2,1799.0,1.62289245]
[1745614274163,1.28938591,1799.4,1799.1,1.62289245]
[1745614274364,1.28938591,1799.4,1799.2,1.62289245]
[1745614274596,0.7715,1799.4,1799.1,1.62289245]
[1745614279497,0.7715,1799.4,1799.0,1.62289245]
[1745614279700,0.7715,1799.4,1799.1,1.62289245]
[1745614281704,0.7215,1799.4,1799.1,1.62289245]
[1745614283026,0.51788591,1799.6,1799.5,5.55709919]
[1745614283186,0.51788591,1799.6,1799.5,15.44233481]
[1745614283396,0.51788591,1799.6,1799.5,16.33435778]
[1745614283710,0.51788591,1799.6,1799.5,19.33435778]
[1745614284011,0.4624665,1799.9,1799.8,12.6029578]
[1745614284183,0.05,1800.9,1800.5,1.62289245]
[1745614284774,0.05,1800.9,1800.5,7.17689097]
[1745614284989,0.05,1800.9,1800.7,1.62289245]
[1745614285323,0.05,1800.9,1800.5,6.40334764]
[1745614285711,0.05,1800.9,1800.6,5.55359014]
[1745614285911,0.05,1800.9,1800.5,0.84950681]
[1745614286426,0.05,1800.9,1800.6,5.55366913]
[1745614287732,0.05,1800.9,1800.5,6.40338808]
[1745614288236,0.05,1800.9,1800.7,0.84950681]
[1745614288405,0.05,1800.9,1800.7,6.40276535]
[1745614288610,0.05,1800.9,1800.8,5.55308751]
[1745614288809,0.05,1800.9,1800.8,4.726]
[1745614289409,0.05,1800.9,1800.8,10.27908751]
[1745614289620,0.05,1800.9,1800.8,11.06798751]
[1745614291898,0.05,1800.9,1800.6,6.40309209]
[1745614292103,0.05,1800.9,1800.7,4.725]
[1745614292542,0.05,1800.9,1800.7,10.27836893]
[1745614294227,0.05,1800.9,1800.7,4.725]
[1745614295433,0.05,1800.9,1800.7,10.98268484]
[1745614295642,0.05,1800.9,1800.7,10.9271621]
[1745614296049,0.05,1800.9,1800.7,10.98268481]
[1745614296247,0.05,1800.9,1800.7,10.9271621]
[1745614296755,0.05,1800.9,1800.7,10.92719851]
[1745614296936,0.05,1800.9,1800.8,1.09271985]
[1745614297703,0.05,1800.9,1800.7,4.725]
[1745614298231,0.05,1800.9,1800.7,10.27827272]
[1745614298437,0.05,1800.9,1800.7,10.69133018]
[1745614298807,0.05,1800.9,1800.8,5.55308751]
[1745614299009,0.05,1800.9,1800.7,10.69126537]
[1745614299234,0.05,1800.9,1800.8,1.06912654]
[1745614299982,0.05,1800.9,1800.3,7.21927936]
[1745614300169,0.05,1800.9,1800.4,4.723]
[1745614301580,0.8241,1800.8,1800.2,0.41928493]
[1745614301744,0.8241,1800.8,1800.5,4.723]
[1745614304247,0.8241,1800.8,1800.4,4.723]
[1745614305372,0.8241,1800.8,1800.4,5.1953]
[1745614305869,0.8241,1800.8,1800.4,0.4723]
[1745614306069,0.8241,1800.8,1800.4,5.1953]
[1745614310978,0.8241,1800.8,1800.5,0.84950681]
[1745614311204,0.8241,1800.8,1800.5,6.40347234]
[1745614311382,0.05,1800.9,1800.7,0.84950681]
[1745614311560,0.05,1800.9,1800.7,7.16958855]
[1745614311888,0.05,1800.9,1800.8,4.77852291]
[1745614312182,0.05,1800.9,1800.8,4.723]
[1745614315054,0.05,1800.9,1800.8,10.27608751]
[1745614315283,0.05,1800.9,1800.8,11.06632651]
[1745614315446,0.05,1800.9,1800.8,5.513239]
[1745614316189,0.05,1800.9,1800.8,5.56876083]
[1745614316480,0.05,1800.9,1800.8,5.513239]
[1745614316653,0.05,1800.9,1800.8,11.06632651]
[1745614317885,0.05,1800.9,1800.8,11.12184838]
[1745614318095,0.05,1800.9,1800.8,5.513239]
[1745614318267,0.05,1800.9,1800.8,11.06632651]
[1745614320556,0.05,1800.9,1800.8,5.513239]
[1745614320957,0.05,1800.9,1800.8,11.06632651]
[1745614321358,0.05,1800.9,1800.8,5.513239]
[1745614322294,0.05,1800.9,1800.8,11.06632651]
[1745614323468,0.05,1800.9,1800.8,5.513239]
[1745614325398,0.05,1800.9,1800.8,11.06632651]
[1745614326230,0.05,1800.9,1800.8,5.513239]
[1745614329514,0.05,1800.9,1800.8,11.82442651]
[1745614329684,0.05,1800.9,1800.8,15.61357138]
[1745614329878,0.05,1800.9,1800.8,16.16357138]
[1745614330509,1e-08,1800.9,1800.8,16.16357138]
[1745614330716,1e-08,1800.9,1800.8,17.82342808]
[1745614331021,1e-08,1800.9,1800.8,16.97392127]
[1745614342031,0.4124665,1801.7,1801.6,5.55062166]
[1745614342324,0.4124665,1801.7,1801.6,11.37976316]
[1745614343526,0.4124665,1801.7,1801.6,5.8291415]
[1745614344028,0.4124665,1801.7,1801.6,11.37976316]
[1745614345131,0.4124665,1801.7,1801.6,5.8291415]
[1745614345295,0.4124665,1801.7,1801.6,11.37976316]
[1745614346019,0.4124665,1801.7,1801.6,5.8291415]
[1745614346633,0.4124665,1801.7,1801.6,4.719]
[1745614346940,0.4124665,1801.7,1801.6,10.26962166]
[1745614348122,0.4124665,1801.7,1801.6,4.719]
[1745614349128,0.4124665,1801.7,1801.5,5.96835264]
[1745614349338,0.4124665,1801.7,1801.6,10.26762166]
[1745614349744,1.1901665,1801.7,1801.6,4.717]
[1745614350943,1.1901665,1801.7,1801.5,5.55087122]
[1745614351143,1.1901665,1801.7,1801.6,4.717]
[1745614353833,0.8062,1801.6,1801.2,5.96684433]
[1745614354032,0.8062,1801.6,1801.3,4.716]
[1745614355037,0.8062,1801.6,1801.2,5.96679298]
[1745614355339,0.8062,1801.6,1801.1,5.5520321]
[1745614355497,0.8038,1801.5,1800.6,0.7505]
[1745614355703,0.8038,1801.5,1800.7,10.26919477]
[1745614356103,1.11418728,1801.5,1800.9,5.55268595]
[1745614356303,0.8112,1801.4,1800.9,5.55268595]
[1745614356937,0.8112,1801.4,1801.1,5.55212537]
[1745614357104,0.8112,1801.4,1801.2,4.716]
[1745614358538,0.8112,1801.4,1800.7,5.55339522]
[1745614358836,0.8111,1801.3,1800.8,4.717]
[1745614359236,0.8111,1801.3,1800.9,4.717]
[1745614362734,0.8111,1801.3,1800.9,10.26971673]
[1745614363338,0.8111,1801.3,1801.0,4.717]
[1745614365014,0.8111,1801.3,1800.8,5.55290645]
[1745614365413,0.8111,1801.3,1800.9,4.717]
[1745614366314,0.8111,1801.3,1800.8,5.55290645]
[1745614366509,0.8111,1801.3,1800.9,4.717]
[1745614367314,0.8111,1801.3,1801.0,4.717]
[1745614368240,0.8111,1801.3,1800.8,5.55290645]
[1745614368442,0.8111,1801.3,1801.0,4.718]
[1745614368844,0.8111,1801.3,1800.9,5.55266405]
[1745614369024,0.8111,1801.3,1801.0,4.718]
[1745614370107,0.8111,1801.3,1800.8,5.55287153]
[1745614370509,0.8111,1801.3,1800.9,4.718]
[1745614370813,0.8111,1801.3,1801.0,4.718]
[1745614371223,0.8111,1801.3,1800.9,5.55258385]
[1745614371546,0.8111,1801.3,1801.0,4.718]
[1745614372967,0.8111,1801.3,1800.8,5.55286582]
[1745614373119,0.8111,1801.3,1801.1,4.718]
[1745614374367,0.8111,1801.3,1800.9,5.55255423]
[1745614374569,0.8111,1801.3,1801.1,4.716]
[1745614374769,0.8111,1801.3,1801.1,10.26807204]
[1745614374966,0.8111,1801.3,1801.1,10.26796097]
[1745614375522,0.8111,1801.3,1801.2,4.716]
[1745614383284,0.8111,1801.3,1801.0,5.55226546]
[1745614383577,0.8111,1801.3,1801.1,4.716]
[1745614385489,0.8111,1801.3,1800.5,0.78914487]
[1745614385633,0.7547,1801.1,1800.8,4.716]
[1745614385836,0.7547,1801.1,1800.7,4.716]
[1745614386277,0.51636616,1801.0,1800.7,4.716]
[1745614386989,0.8098,1800.9,1800.7,4.716]
[1745614392718,0.7786,1800.7,1800.0,6.3637517]
[1745614393007,0.7786,1800.7,1800.1,5.35237517]
[1745614393164,0.7786,1800.7,1800.1,10.90759631]
[1745614393365,0.7786,1800.7,1800.1,0.63637517]
[1745614393564,0.7802,1800.6,1800.2,4.716]
[1745614394517,0.7802,1800.6,1800.1,0.63637517]
[1745614394823,0.7802,1800.6,1800.3,4.716]
[1745614395323,0.7802,1800.6,1799.9,11.88464014]
[1745614395496,0.7802,1800.6,1800.0,11.4610024]
[1745614397019,0.7802,1800.6,1800.0,5.90546401]
[1745614397223,0.7802,1800.6,1800.0,11.46098859]
[1745614397527,0.7802,1800.6,1800.0,5.90546401]
[1745614397925,0.7802,1800.6,1800.0,11.46094355]
[1745614398837,0.7802,1800.6,1800.0,11.46085477]
[1745614399033,0.7802,1800.6,1800.1,5.55516023]
[1745614399526,0.7802,1800.6,1800.0,11.46085477]
[1745614400633,0.7802,1800.6,1800.1,5.55523052]
[1745614400930,0.7802,1800.6,1800.0,17.01620036]
[1745614401098,0.7802,1800.6,1800.1,0.71442222]
[1745614403525,0.7802,1800.6,1800.2,4.717]
[1745614404724,0.7802,1800.6,1800.0,5.55534559]
[1745614404932,0.7802,1800.6,1800.3,4.716]
[1745614406432,1.62970681,1800.6,1799.8,22.20897804]
[1745614406598,0.782,1800.5,1799.9,4.716]
[1745614407184,1.63150681,1800.2,1799.7,0.5]
[1745614407438,0.782,1799.8,1799.7,0.5]
[1745614407790,8.5561729,1799.8,1799.7,0.5]
[1745614407998,10.16415537,1799.8,1799.7,0.5]
[1745614408224,6.67916521,1799.8,1799.7,0.5]
[1745614408438,3.26494802,1799.8,1799.7,0.5]
[1745614408724,1.09174721,1799.8,1799.7,0.5]
[1745614408958,0.782,1799.8,1799.7,0.5]
[1745614411566,6.3381729,1799.8,1799.7,0.5]
[1745614411719,6.75168731,1799.8,1799.7,0.5]
[1745614412316,12.86168731,1799.8,1799.7,0.5]
[1745614412748,12.23223885,1799.8,1799.7,0.5]
[1745614412948,17.78841175,1799.8,1799.7,0.5]
[1745614413186,12.23223885,1799.8,1799.7,0.5]
[1745614413392,17.78841175,1799.8,1799.7,0.5]
[1745614414075,12.23223885,1799.8,1799.7,0.5]
[1745614414398,11.81872444,1799.8,1799.7,0.5]
[1745614417490,9.892,1799.8,1799.7,0.5]
[1745614418233,3.782,1799.8,1799.7,0.5]
[1745614422836,9.3381729,1799.8,1799.7,0.5]
[1745614423000,3.782,1799.8,1799.7,0.5]
[1745614423521,4.607968,1799.8,1799.7,0.5]
[1745614423726,5.80728338,1799.8,1799.7,0.5]
[1745614423928,11.36345628,1799.8,1799.7,0.5]
[1745614424097,5.80728338,1799.8,1799.7,0.5]
[1745614424624,5.49753279,1799.8,1799.7,0.5]
[1745614424821,4.98131538,1799.8,1799.7,0.5]
[1745614427136,5.29116218,1799.8,1799.7,0.5]
[1745614428207,4.98131538,1799.8,1799.7,0.5]
[1745614428796,5.4977671,1799.8,1799.7,0.5]
[1745614430635,5.80780734,1799.8,1799.7,0.5]
[1745614436240,11.36398024,1799.8,1799.7,0.5]
[1745614436438,11.91780734,1799.8,1799.7,0.5]
[1745614440479,11.13580734,1799.8,1799.7,0.5]
[1745614440780,9.93649196,1799.8,1799.7,0.5]
[1745614441555,3.82649196,1799.8,1799.7,0.5]
[1745614445784,4.61279196,1799.8,1799.7,0.5]
[1745614445982,10.16896486,1799.8,1799.7,0.5]
[1745614446586,16.27896486,1799.8,1799.7,0.5]
[1745614447087,18.54741987,1799.8,1799.7,0.5]
[1745614453401,9.35368163,1799.7,1799.6,0.5]
[1745614453581,10.20318844,1799.7,1799.6,0.5]
[1745614453780,10.71964016,1799.7,1799.6,0.5]
[1745614454022,13.77282167,1799.7,1799.6,0.5]
[1745614454803,14.08286191,1799.7,1799.6,0.5]
[1745614455102,13.2333551,1799.7,1799.6,0.5]
[1745614455467,4.67687347,1799.7,1799.6,0.5]
[1745614455867,6.87967347,1799.7,1799.6,0.5]
[1745614456072,3.87967347,1799.7,1799.6,0.5]
[1745614456304,0.82649196,1799.7,1799.6,0.5]
[1745614456480,3.82649196,1799.7,1799.6,0.5]
[1745614459383,9.38297359,1799.7,1799.6,0.5]
[1745614461515,10.19187359,1799.7,1799.6,0.5]
[1745614462878,11.0413804,1799.7,1799.6,0.37398113]
[1745614463208,3.0,1799.3,1799.1,0.05]
[1745614463405,10.47595853,1799.2,1799.1,0.05]
[1745614463906,10.78599877,1799.2,1799.1,0.05]
[1745614465705,11.19420483,1799.2,1799.1,0.05]
[1745614465905,12.95029431,1799.2,1799.1,0.05]
[1745614466778,18.50832009,1799.2,1799.1,0.05]
[1745614469049,12.95029431,1799.2,1799.1,0.05]
[1745614472314,18.50832009,1799.2,1799.1,0.05]
[1745614472778,18.50886754,1799.2,1799.1,0.05]
[1745614475421,12.95084176,1799.2,1799.1,0.05]
[1745614475919,18.50886754,1799.2,1799.1,0.05]
[1745614476122,12.95084176,1799.2,1799.1,0.05]
[1745614477795,12.10133495,1799.2,1799.1,0.05]
[1745614479229,9.93703941,1799.2,1799.1,0.05]
[1745614480425,3.82703941,1799.2,1799.1,0.05]
[1745614490430,16.26386519,1799.2,1799.1,0.05]
[1745614490951,17.88561506,1799.2,1799.1,0.05]
[1745614491423,5.5592669,1798.8,1798.5,0.5]
[1745614491629,5.48826425,1798.7,1798.5,0.5]
[1745614492315,0.51645172,1798.6,1798.5,0.5]
[1745614492856,0.82703941,1798.6,1798.5,0.5]
[1745614495726,0.31058769,1798.6,1798.5,0.5]
[1745614496128,4.3829661,1798.7,1798.5,0.5]
[1745614500523,0.43829661,1798.6,1798.5,0.5]
[1745614501463,1.26533602,1798.6,1798.5,0.5]
[1745614501931,6.82521592,1798.6,1798.5,0.5]
[1745614502667,9.82521592,1798.6,1798.5,0.5]
[1745614502830,5.56100298,1798.3,1798.1,0.05]
[1745614503037,15.48621667,1798.2,1798.1,0.05]
[1745614503334,15.79680436,1798.2,1798.1,0.05]
[1745614503732,9.42058769,1798.2,1798.1,0.05]
[1745614503934,10.91873374,1798.2,1798.1,0.05]
[1745614504161,11.43518546,1798.2,1798.1,0.05]
[1745614504775,11.8462003,1798.2,1798.1,0.05]
[1745614505371,11.53561261,1798.2,1798.1,0.05]
[1745614506980,11.01916089,1798.2,1798.1,0.05]
[1745614507837,16.58027756,1798.2,1798.1,0.05]
[1745614509276,17.40364306,1798.2,1798.1,0.05]
[1745614510275,18.25550843,1798.2,1798.1,0.05]
[1745614510487,19.08030843,1798.2,1798.1,0.05]
[1745614514023,13.51919176,1798.2,1798.1,0.05]
[1745614514292,12.69439176,1798.2,1798.1,0.05]
[1745614514459,11.84252639,1798.2,1798.1,0.05]
[1745614514662,11.53375995,1798.2,1798.1,0.05]
[1745614514897,17.09487662,1798.2,1798.1,0.05]
[1745614516800,11.53375995,1798.2,1798.1,0.05]
[1745614517095,17.40363408,1798.2,1798.1,0.05]
[1745614517498,11.84251741,1798.2,1798.1,0.05]
[1745614517680,17.40363408,1798.2,1798.1,0.05]
[1745614519114,11.84251741,1798.2,1798.1,0.05]
[1745614519802,0.51459906,1798.2,1798.1,0.05]
[1745614519984,0.51459906,1798.4,1798.1,0.05]
[1745614520163,9.07520734,1798.4,1798.1,0.05]
[1745614520364,0.30950578,1798.3,1798.1,0.05]
[1745614520692,5.87042039,1798.3,1798.1,0.05]
[1745614520917,0.58704204,1798.2,1798.1,0.05]
[1745614521200,1.1016411,1798.2,1798.1,0.05]
[1745614521506,1.41114688,1798.2,1798.1,0.05]
[1745614522705,0.82410484,1798.2,1798.1,0.8687]
[1745614523071,0.51459906,1798.2,1798.1,0.8687]
[1745614524209,3.73394596,1798.4,1798.1,0.8687]
[1745614524210,4.24854502,1798.4,1798.1,0.8687]
[1745614527122,0.51459906,1798.3,1798.1,0.8687]
[1745614527430,0.51459906,1798.3,1798.2,6.33741667]
[1745614527631,0.51459906,1798.3,1798.2,8.14508848]
[1745614528279,6.11,1798.9,1798.6,0.8271]
[1745614528504,10.83,1799.1,1798.6,0.8271]
[1745614528914,3.0,1799.0,1798.6,0.8271]
[1745614529131,3.31009262,1799.0,1798.6,0.8271]
[1745614529302,4.72410188,1799.0,1798.6,0.8271]
[1745614529499,2.24068399,1799.0,1798.6,0.8271]
[1745614530001,5.24068399,1799.0,1798.6,0.8271]
[1745614530785,4.93059137,1799.0,1798.6,0.8271]
[1745614532184,4.41400926,1799.0,1798.6,0.8271]
[1745614532384,0.44140093,1798.9,1798.6,0.8271]
[1745614533095,0.44140093,1798.9,1798.3,0.8251]
[1745614533096,5.55935994,1798.8,1798.3,0.8251]
[1745614533300,14.66962366,1798.7,1798.3,0.8251]
[1745614534317,9.11,1798.7,1798.3,0.8251]
[1745614535008,0.5159544,1798.6,1798.3,0.8251]
[1745614535322,1.47854984,1798.6,1798.3,0.8251]
[1745614536299,0.96259544,1798.6,1798.3,0.8251]
[1745614537945,1.41400926,1799.0,1798.5,5.56004646]
[1745614538107,6.52904679,1799.1,1798.6,0.8249]
[1745614539610,3.0,1799.0,1798.6,0.8249]
[1745614540733,6.52904679,1799.1,1798.6,0.8249]
[1745614540903,6.11,1799.1,1798.7,0.8254]
[1745614542237,6.11,1799.1,1798.8,0.7607]
[1745614544235,9.11,1799.2,1798.8,0.7607]
[1745614546507,9.11,1799.2,1798.9,0.8243]
[1745614551335,6.11,1799.5,1799.0,0.85186537]
[1745614551550,6.11,1799.5,1798.8,0.816]
[1745614551551,0.611,1799.5,1799.1,0.816]
[1745614551846,3.611,1799.5,1799.1,0.816]
[1745614552005,4.12717043,1799.5,1799.1,0.816]
[1745614552200,4.4368673,1799.5,1799.1,0.816]
[1745614554041,0.8258673,1799.5,1799.1,0.816]
[1745614554233,0.51617043,1799.5,1799.2,0.8022]
[1745614554635,6.11,1799.6,1799.2,0.8022]
[1745614558810,3.0,1799.6,1799.2,0.8022]
[1745614559235,3.51660557,1799.6,1799.2,0.8022]
[1745614559546,4.78246797,1799.6,1799.2,0.8022]
[1745614560434,5.09240237,1799.6,1799.2,0.8022]
[1745614561055,11.43932356,1799.6,1799.2,0.8022]
[1745614561344,11.43932356,1799.6,1798.9,0.7706]
[1745614561535,1.67840534,1799.5,1798.9,0.7706]
[1745614561735,3.46322808,1799.5,1798.9,0.7706]
[1745614561942,3.0,1799.4,1798.9,0.7706]
[1745614562536,3.3099344,1799.4,1798.9,0.7706]
[1745614562829,3.82653997,1799.4,1798.9,0.7706]
[1745614563208,0.82653997,1799.4,1799.1,0.752]
[1745614563420,0.82653997,1799.4,1799.1,5.55833472]
[1745614563623,0.82653997,1799.4,1799.2,0.752]
[1745614563909,0.82653997,1799.4,1799.2,1.38303347]
[1745614564130,0.82653997,1799.4,1799.3,0.752]
[1745614565047,0.82653997,1799.4,1799.3,6.30971688]
[1745614565247,0.82653997,1799.4,1799.3,6.35161688]
[1745614565543,0.82653997,1799.4,1799.3,0.7939]
[1745614567219,0.51660557,1799.4,1799.3,0.7939]
[1745614568115,0.82653997,1799.7,1799.3,0.7939]
[1745614569848,0.82653997,1799.7,1799.4,0.8262]
[1745614570352,0.51660557,1799.7,1799.4,0.8262]
[1745614570955,6.11,1799.8,1799.4,0.8262]
[1745614571256,6.721,1799.8,1799.4,0.8262]
[1745614572346,6.11,1799.8,1799.4,5.55739696]
[1745614572554,6.11,1799.8,1799.5,0.7632]
[1745614572742,13.825,1800.0,1799.5,0.7632]
[1745614573871,6.40666402,1800.3,1799.2,6.19789884]
[1745614573872,0.31023839,1799.9,1799.6,0.85186537]
[1745614574050,0.31023839,1799.9,1799.7,0.7948]
[1745614574354,0.31023839,1799.9,1799.7,1.90134474]
[1745614574743,0.31023839,1799.9,1799.7,0.7948]
[1745614575152,1.32706445,1800.2,1799.7,0.7948]
[1745614575153,1.63730284,1800.2,1799.7,0.7948]
[1745614576370,1.32706445,1800.2,1799.7,0.7948]
[1745614577225,0.51716445,1800.2,1799.7,6.3511693]
[1745614577424,4.58110284,1800.3,1799.8,0.7733]
[1745614577625,0.45811028,1800.2,1799.8,0.7733]
[1745614579958,1.58110284,1800.3,1799.8,0.7733]
[1745614580136,0.82740284,1800.3,1799.8,0.7733]
[1745614580865,0.82740284,1800.3,1800.2,6.35203834]
[1745614581027,0.82740284,1800.3,1800.2,0.7971]
[1745614581228,0.31023839,1800.3,1800.2,6.35203834]
[1745614581547,0.31023839,1800.3,1800.2,7.54274955]
[1745614582074,0.51716445,1800.7,1800.3,6.33193626]
[1745614582361,0.51716445,1800.7,1800.4,0.7775]
[1745614582537,6.11,1800.8,1800.4,0.7775]
[1745614585328,6.16,1800.9,1800.4,0.7775]
[1745614585626,0.616,1800.8,1800.4,0.7775]
[1745614591159,0.616,1800.8,1800.2,6.74543212]
[1745614591160,5.55374208,1800.6,1800.2,0.7905]
[1745614591457,11.66374208,1800.6,1800.0,0.7905]
[1745614591962,12.08525595,1800.6,1800.0,0.7905]
[1745614592170,1.2085256,1800.5,1800.0,0.7905]
[1745614593945,6.11,1800.6,1800.2,0.7905]
[1745614594538,6.11,1800.6,1800.2,5.55487075]
[1745614594744,6.11,1800.6,1800.3,0.7633]
[1745614597075,6.726,1800.8,1800.3,0.7633]
[1745614603479,5.55341721,1800.7,1800.3,0.7633]
[1745614603779,1.84966482,1800.6,1800.3,0.7633]
[1745614603986,2.16006994,1800.6,1800.3,0.7633]
[1745614605488,1.38306994,1800.6,1800.3,0.7633]
[1745614605646,0.82772822,1800.6,1800.3,0.7633]
[1745614605850,0.5173231,1800.6,1800.3,0.7633]
[1745614606051,0.82772822,1800.7,1800.3,0.7633]
[1745614606957,0.31040512,1800.6,1800.3,0.7633]
[1745614607163,0.5173231,1800.5,1800.3,0.7633]
[1745614607954,0.82772822,1800.5,1800.3,0.7633]
[1745614608661,0.5173231,1800.5,1800.3,0.7633]
[1745614608863,6.42040512,1800.6,1800.3,0.7633]
[1745614609063,7.61779724,1800.6,1800.3,0.7633]
[1745614609588,0.31040512,1800.5,1800.3,0.7633]
[1745614610172,7.30739212,1800.6,1800.3,0.7633]
[1745614611478,0.51843438,1800.5,1800.3,0.7633]
[1745614612190,0.31103405,1800.4,1800.3,0.7633]
[1745614612556,0.82946843,1800.4,1800.3,0.7633]
[1745614613090,0.51843438,1800.4,1800.3,0.7633]
[1745614615192,0.51843438,1800.5,1800.3,0.7633]
[1745614616257,6.11,1800.6,1800.3,0.7633]
[1745614616456,6.721,1800.6,1800.3,0.7633]
[1745614616996,6.11,1800.6,1800.4,5.55426426]
[1745614617205,0.3111041,1800.5,1800.4,0.7581]
[1745614617890,6.11,1800.6,1800.4,0.7581]
[1745614620502,12.47811062,1800.8,1800.4,0.7581]
[1745614620702,0.31102233,1800.7,1800.2,0.756]
[1745614621003,1.58993563,1800.7,1800.2,0.756]
[1745614621487,0.51844759,1800.6,1800.2,0.756]
[1745614622893,0.51845863,1800.5,1800.2,0.756]
[1745614623891,0.31111796,1800.4,1800.2,0.756]
[1745614624796,0.815,1800.6,1800.2,0.756]
[1745614625185,6.36871035,1800.6,1800.2,0.756]
[1745614625481,0.9479349,1800.5,1800.2,0.756]
[1745614626003,0.9479349,1800.5,1800.0,0.8242]
[1745614626004,6.50195288,1800.5,1800.0,0.8242]
[1745614626312,12.61195288,1800.5,1800.0,0.8242]
[1745614626671,7.0579349,1800.5,1800.0,0.8242]
[1745614626872,0.829414,1800.4,1800.0,0.8242]
[1745614627290,1.5870425,1800.4,1800.0,0.8242]
[1745614628414,0.829414,1800.3,1800.0,0.8242]
[1745614630783,1.60986537,1800.1,1799.3,0.7636]
[1745614631101,12.1840705,1800.0,1799.3,0.7636]
[1745614631311,5.55601861,1799.9,1799.3,0.7636]
[1745614631481,7.64109139,1799.9,1799.3,0.7636]
[1745614631678,6.40854383,1799.7,1799.3,0.7636]
[1745614631882,12.51854383,1799.7,1799.3,0.7636]
[1745614632120,0.51835013,1799.6,1799.3,0.7636]
[1745614632627,0.51835013,1799.6,1799.3,0.73537391]
[1745614632830,7.29368108,1799.6,1799.3,0.73537391]
[1745614632986,7.29368108,1799.6,1798.9,4.711]
[1745614633187,6.77533095,1799.6,1798.9,4.711]
[1745614634196,1.21850286,1799.6,1798.9,4.711]
[1745614634400,6.77529474,1799.6,1798.9,4.711]
[1745614634584,0.67752947,1799.5,1798.9,4.711]